bitfinex/quotes_SOLUSD_20220207
["timestamp","ask_amount","ask_price","bid_price","bid_amount"]
[1644244856791,10.11,119.66,119.48,12.16388465]
[1644244856993,35.95469715,119.65,119.49,41.0122219]
[1644244857195,35.95469715,119.65,119.5,10.11]
[1644244857393,35.95469715,119.65,119.52,12.5488]
[1644244857591,35.95469715,119.65,119.53,45.77271024]
[1644244857792,35.95469715,119.65,119.53,46.02271024]
[1644244857991,35.95469715,119.65,119.53,47.82659489]
[1644244858793,12.5505,119.66,119.53,47.82659489]
[1644244859005,41.8366,119.68,119.54,10.11]
[1644244859006,12.5476,119.68,119.54,10.11]
[1644244859207,51.9353,119.71,119.54,10.36]
[1644244859408,41.8253,119.71,119.55,1.80388465]
[1644244859608,10.11,119.73,119.56,10.11]
[1644244859906,38.65264463,119.72,119.57,40.75354019]
[1644244860108,36.65264463,119.72,119.57,40.75354019]
[1644244860307,49.19594463,119.72,119.57,40.75354019]
[1644244860507,37.66164469,119.71,119.49,25.96730149]
[1644244860706,37.66164469,119.71,119.5,10.11]
[1644244860707,41.84064469,119.71,119.5,10.11]
[1644244860908,27.55164469,119.7,119.51,1.80388465]
[1644244861111,10.11,119.69,119.52,10.11]
[1644244861506,40.95330346,119.68,119.53,39.49756942]
[1644244861710,12.5508,119.67,119.53,39.49756942]
[1644244862007,38.04600729,119.66,119.53,39.49756942]
[1644244862708,63.46590215,119.66,119.48,4.179]
[1644244862912,22.6609,119.65,119.47,10.11]
[1644244863109,22.6609,119.65,119.47,6.0]
[1644244863307,2.14682857,119.64,119.46,22.6653]
[1644244863607,10.11,119.63,119.47,6.15484]
[1644244863809,47.11386974,119.62,119.48,39.49179442]
[1644244864008,35.1517219,119.6,119.48,45.64611442]
[1644244864411,35.1517219,119.6,119.5,41.68923007]
[1644244864611,15.00806629,119.67,119.51,10.11]
[1644244865010,15.00806629,119.67,119.51,10.36]
[1644244865311,12.5528,119.63,119.5,41.68923007]
[1644244865510,37.97235285,119.62,119.5,41.68923007]
[1644244867013,12.555,119.61,119.5,41.68923007]
[1644244867216,10.11,119.66,119.5,41.68923007]
[1644244867414,10.11,119.66,119.5,53.60311472]
[1644244867614,10.11,119.66,119.5,53.85311472]
[1644244867813,10.11,119.66,119.5,52.04923007]
[1644244868213,49.74560909,119.65,119.5,52.04923007]
[1644244868614,49.74560909,119.65,119.5,59.85311472]
[1644244869018,49.74560909,119.65,119.51,13.92764189]
[1644244869214,49.74560909,119.65,119.53,12.5478]
[1644244869514,37.19590909,119.65,119.54,55.83610201]
[1644244869715,37.19590909,119.65,119.54,57.88998666]
[1644244869916,12.5471,119.67,119.54,56.08610201]
[1644244870316,10.11,119.71,119.54,57.88998666]
[1644244870516,12.5426,119.71,119.55,12.5462]
[1644244870717,2.35148733,119.74,119.56,10.11]
[1644244870922,48.61639136,119.74,119.57,36.08779902]
[1644244871116,48.61639136,119.74,119.58,10.11]
[1644244871317,48.61639136,119.74,119.59,42.04600071]
[1644244871521,48.61639136,119.74,119.6,10.11]
[1644244871820,48.61639136,119.74,119.61,40.31219771]
[1644244872019,46.56329311,119.72,119.61,52.85169771]
[1644244872217,46.56329311,119.72,119.61,40.31219771]
[1644244872617,137.61806629,119.78,119.61,50.42219771]
[1644244872819,6.18045,119.77,119.61,62.14519771]
[1644244873019,6.18045,119.77,119.61,80.68479771]
[1644244873317,6.18045,119.77,119.62,13.92764189]
[1644244873519,6.18045,119.77,119.63,48.90966798]
[1644244873720,6.18045,119.77,119.63,55.13955263]
[1644244873918,47.66231998,119.77,119.63,61.13955263]
[1644244874319,6.18045,119.77,119.63,61.13955263]
[1644244874525,6.18045,119.77,119.66,12.5323]
[1644244874725,6.18045,119.77,119.66,29.5223]
[1644244874920,6.18045,119.77,119.67,11.91388465]
[1644244875122,6.18045,119.77,119.67,17.91388465]
[1644244875320,6.18045,119.77,119.68,34.96028847]
[1644244875520,6.18045,119.77,119.69,10.11]
[1644244875720,6.18045,119.77,119.69,16.36]
[1644244876324,2.35148733,119.85,119.69,16.36]
[1644244876523,2.35148733,119.86,119.69,16.36]
[1644244876730,36.55332685,119.84,119.7,45.4328789]
[1644244876930,36.55332685,119.84,119.71,10.11]
[1644244877125,36.55332685,119.84,119.72,42.02967851]
[1644244877324,36.55332685,119.84,119.73,10.11]
[1644244877527,36.55332685,119.84,119.74,38.84257013]
[1644244877725,36.55332685,119.84,119.74,39.09257013]
[1644244877926,0.1,119.85,119.74,39.09257013]
[1644244878126,0.2,119.86,119.74,39.09257013]
[1644244878326,6.38045,119.86,119.74,39.09257013]
[1644244878526,6.38045,119.86,119.74,45.09257013]
[1644244878726,6.38045,119.86,119.74,44.84257013]
[1644244878926,37.75734632,119.85,119.74,38.84257013]
[1644244879125,12.5301,119.83,119.74,38.84257013]
[1644244879329,18.71055,119.83,119.74,38.84257013]
[1644244879726,6.18045,119.83,119.74,38.84257013]
[1644244880127,6.18045,119.83,119.75,10.11]
[1644244880329,6.18045,119.83,119.76,37.40618943]
[1644244880728,0.2,119.86,119.76,37.65618943]
[1644244880932,0.2,119.86,119.77,10.11]
[1644244881131,0.2,119.87,119.77,16.11]
[1644244881331,0.2,119.87,119.77,16.36]
[1644244881732,0.2,119.87,119.78,38.03896796]
[1644244881933,0.2,119.87,119.79,10.11]
[1644244882129,0.2,119.87,119.79,16.11]
[1644244882331,0.2,119.87,119.79,16.36]
[1644244882731,0.2,119.87,119.8,12.5181]
[1644244882931,109.63415726,119.88,119.81,76.11]
[1644244883130,88.37278456,119.88,119.82,34.77470077]
[1644244883332,69.31909415,119.88,119.83,10.11]
[1644244883733,69.31909415,119.88,119.83,16.36]
[1644244884233,69.31909415,119.88,119.84,16.00499429]
[1644244884634,69.31909415,119.88,119.84,22.25499429]
[1644244884834,69.31909415,119.88,119.84,18.5141]
[1644244885036,69.31909415,119.88,119.76,28.8648]
[1644244885258,69.31909415,119.88,119.77,10.11]
[1644244885660,69.31909415,119.88,119.77,16.11]
[1644244885859,109.83777138,119.88,119.78,45.31876691]
[1644244886161,109.83777138,119.88,119.79,10.11]
[1644244886461,109.83777138,119.88,119.8,5.46092815]
[1644244886658,109.83777138,119.88,119.79,10.11]
[1644244887462,69.31909415,119.88,119.79,10.11]
[1644244887862,69.31909415,119.88,119.79,16.36]
[1644244888263,69.31909415,119.88,119.79,31.40044189]
[1644244888463,103.6065842,119.88,119.8,41.24027242]
[1644244888667,103.6065842,119.88,119.8,6.0]
[1644244888868,103.6065842,119.88,119.79,10.11]
[1644244889263,103.6065842,119.88,119.79,10.36]
[1644244889671,69.31909415,119.88,119.8,40.00995126]
[1644244889864,69.31909415,119.88,119.8,50.11995126]
[1644244890070,69.31909415,119.88,119.8,10.36]
[1644244890265,69.31909415,119.88,119.8,10.11]
[1644244891065,116.75067303,119.88,119.81,46.71067816]
[1644244891268,116.75067303,119.88,119.81,10.11]
[1644244891765,116.75067303,119.88,119.76,34.8038]
[1644244892168,116.75067303,119.88,119.77,47.84109936]
[1644244892665,116.75067303,119.88,119.77,57.95109936]
[1644244892865,116.75067303,119.88,119.77,10.11]
[1644244893065,116.75067303,119.88,119.76,24.6938]
[1644244893266,128.1515016,119.88,119.74,34.7879]
[1644244893565,128.1515016,119.88,119.72,10.11]
[1644244893765,10.11,119.87,119.73,45.41869613]
[1644244893964,48.76419095,119.86,119.73,51.56016613]
[1644244894364,48.76419095,119.86,119.7,10.11]
[1644244894565,48.76419095,119.86,119.71,6.1425]
[1644244894767,48.76419095,119.86,119.72,10.11]
[1644244894965,12.5263,119.87,119.73,12.526]
[1644244895167,69.31909415,119.88,119.74,10.11]
[1644244895574,69.31909415,119.88,119.74,43.62144189]
[1644244895770,69.31909415,119.88,119.75,1.80388465]
[1644244895967,69.31909415,119.88,119.76,10.11]
[1644244896168,69.31909415,119.88,119.8,12.5175]
[1644244896371,69.31909415,119.88,119.81,49.63434452]
[1644244896568,69.31909415,119.88,119.81,55.63434452]
[1644244896768,69.31909415,119.88,119.81,55.88434452]
[1644244897068,69.31909415,119.88,119.81,10.11]
[1644244897270,69.31909415,119.88,119.76,4.172]
[1644244897271,69.31909415,119.88,119.78,10.11]
[1644244897668,69.31909415,119.88,119.78,16.24891]
[1644244898069,69.31909415,119.88,119.79,38.30208863]
[1644244898271,69.31909415,119.88,119.8,6.13788]
[1644244898470,69.31909415,119.88,119.8,16.24788]
[1644244899069,48.05857635,119.87,119.8,16.24788]
[1644244899471,48.05857635,119.87,119.8,6.13788]
[1644244900474,57.79857635,119.87,119.8,6.13788]
[1644244900773,72.33068455,119.87,119.8,6.13788]
[1644244901172,57.79857635,119.87,119.8,6.13788]
[1644244901372,12.5271,119.86,119.8,6.13788]
[1644244901573,47.75857635,119.87,119.8,6.13788]
[1644244901773,42.05,119.84,119.8,6.13788]
[1644244902376,42.05,119.87,119.8,6.13788]
[1644244903873,42.05,119.87,119.8,8e-05]
[1644244904074,42.05,119.85,119.72,47.27422515]
[1644244904274,42.05,119.85,119.72,10.11]
[1644244904475,42.05,119.85,119.73,6.14147]
[1644244905274,42.05,119.83,119.74,39.29593674]
[1644244905674,36.08261427,119.82,119.7,24.0317]
[1644244905875,42.05,119.81,119.7,34.1417]
[1644244906276,42.05,119.81,119.7,34.3917]
[1644244906475,42.05,119.81,119.7,34.1417]
[1644244906677,42.05,119.81,119.7,10.11]
[1644244906877,42.05,119.79,119.66,4.175]
[1644244907077,42.05,119.79,119.67,10.11]
[1644244907279,42.05,119.79,119.68,6.14404]
[1644244907881,42.05,119.77,119.69,34.1867034]
[1644244908077,42.05,119.81,119.69,34.1867034]
[1644244908477,42.05,119.81,119.69,44.2967034]
[1644244909479,39.26201755,119.8,119.69,44.2967034]
[1644244909681,42.05,119.79,119.69,44.2967034]
[1644244909883,42.05,119.77,119.69,44.2967034]
[1644244910283,42.05,119.77,119.69,44.5467034]
[1644244910485,42.05,119.77,119.7,12.5277]
[1644244910784,42.05,119.77,119.71,10.11]
[1644244910982,82.80484293,119.77,119.71,27.00299166]
[1644244911182,42.05,119.77,119.71,27.00299166]
[1644244911482,41.4868743,119.77,119.71,37.11099166]
[1644244911784,78.492,119.87,119.71,57.69141525]
[1644244911981,69.31909415,119.88,119.71,67.03501822]
[1644244912183,45.07776419,119.87,119.73,7.2567034]
[1644244912381,45.07776419,119.87,119.75,16.89299166]
[1644244912585,45.07776419,119.87,119.75,10.11]
[1644244912981,45.07776419,119.87,119.75,10.36]
[1644244913181,45.07776419,119.87,119.75,10.11]
[1644244913581,45.07776419,119.87,119.76,21.37441202]
[1644244913781,45.07776419,119.87,119.76,31.73441202]
[1644244914381,45.07776419,119.87,119.76,10.36]
[1644244915483,45.07776419,119.87,119.76,10.11]
[1644244915885,45.07776419,119.87,119.76,10.36]
[1644244916284,45.07776419,119.87,119.77,19.08141244]
[1644244916684,45.07776419,119.87,119.77,19.33141244]
[1644244917285,69.31909415,119.88,119.78,10.11]
[1644244917689,69.31909415,119.88,119.78,22.905]
[1644244918288,35.41665959,119.87,119.79,4.63828262]
[1644244918489,35.41665959,119.87,119.8,10.11]
[1644244919288,69.31909415,119.88,119.8,10.11]
[1644244919490,69.31909415,119.88,119.8,10.36]
[1644244919691,69.31909415,119.88,119.8,21.01925846]
[1644244919890,69.31909415,119.88,119.8,27.01925846]
[1644244920490,69.31909415,119.88,119.81,21.83577288]
[1644244920794,112.5,119.97,119.81,21.83577288]
[1644244920795,2.35148733,119.96,119.82,11.92225846]
[1644244920993,0.18831352,119.9,119.83,0.43]
[1644244921190,2.35148733,119.99,119.84,158.0]
[1644244921392,2.87440643,120.0,119.86,0.43]
[1644244921592,1.18547869,119.97,119.87,10.11]
[1644244921793,1.18547869,119.97,119.87,11.96]
[1644244921993,1.18547869,119.97,119.87,17.96]
[1644244922196,1.18547869,119.97,119.88,23.1900078]
[1644244922396,1.18547869,119.97,119.89,10.11]
[1644244922596,1.18547869,119.97,119.89,37.3598]
[1644244922797,0.5229191,120.0,119.89,37.6098]
[1644244923395,0.5229191,120.0,119.9,18.61860183]
[1644244923594,0.5229191,120.0,119.93,12.5014]
[1644244923796,0.5229191,120.0,119.94,10.11]
[1644244926398,0.5229191,120.0,119.9,10.11]
[1644244926612,0.5229191,120.0,119.85,4.167]
[1644244926812,0.5229191,120.0,119.86,6.13481]
[1644244927216,0.5229191,120.0,119.87,10.11]
[1644244927217,44.09952448,119.99,119.87,10.11]
[1644244927414,12.5152,119.98,119.85,4.167]
[1644244927617,12.5152,119.98,119.82,10.11]
[1644244928416,12.5152,119.98,119.77,96.16370566]
[1644244928417,158.0,119.96,119.77,64.54396923]
[1644244928616,0.30075945,119.91,119.78,6.13891]
[1644244928817,9.67775945,119.91,119.78,6.13891]
[1644244929218,25.55585012,119.91,119.78,6.13891]
[1644244929418,58.03638615,119.9,119.78,26.84344475]
[1644244929617,22.6334,119.9,119.78,26.84344475]
[1644244929817,9.48350502,119.93,119.78,26.84344475]
[1644244930019,24.3355,119.94,119.78,20.70453475]
[1644244930218,24.3355,119.94,119.78,36.81453475]
[1644244930621,39.22882655,119.93,119.78,30.81453475]
[1644244931017,10.11,119.97,119.78,30.81453475]
[1644244931218,16.03440567,119.99,119.79,4.171]
[1644244931422,16.03440567,119.99,119.8,10.11]
[1644244931919,34.66263566,119.95,119.81,6.42768162]
[1644244932118,4.17,119.98,119.81,16.53768162]
[1644244932318,50.37690567,119.99,119.81,16.78768162]
[1644244932518,36.7465,119.99,119.81,16.78768162]
[1644244932720,36.7465,119.99,119.81,22.78768162]
[1644244933120,38.46712503,119.98,119.81,22.78768162]
[1644244934017,12.514,119.99,119.81,22.78768162]
[1644244934221,49.2226,120.02,119.82,4.17]
[1644244934222,0.5229191,120.0,119.82,4.17]
[1644244934419,0.5229191,120.0,119.82,79.7578]
[1644244934620,0.5229191,120.0,119.83,10.11]
[1644244934821,0.5229191,120.0,119.83,10.36]
[1644244935019,41.34747148,119.99,119.84,20.70453475]
[1644244935220,41.34747148,119.99,119.85,10.11]
[1644244935519,41.34747148,119.99,119.81,18.10214712]
[1644244935520,41.34747148,119.99,119.79,26.9575]
[1644244935719,25.06354768,119.98,119.8,10.11]
[1644244935922,0.31406647,119.96,119.76,23.8228]
[1644244936121,10.11,119.95,119.75,10.11]
[1644244936519,46.58200904,119.89,119.76,25.09516373]
[1644244936719,48.3758,119.92,119.76,25.09516373]
[1644244936919,48.3758,119.92,119.77,10.11]
[1644244937121,48.3758,119.92,119.76,25.09516373]
[1644244937321,4.48784902,119.91,119.76,25.09516373]
[1644244937524,10.11,119.9,119.76,25.09516373]
[1644244937720,44.62047889,119.89,119.76,25.09516373]
[1644244937920,12.5238,119.91,119.76,25.09516373]
[1644244938922,42.2931576,119.9,119.76,25.09516373]
[1644244939123,12.5243,119.89,119.76,25.09516373]
[1644244939523,131.3775,119.93,119.76,25.09516373]
[1644244939723,121.2675,119.93,119.76,35.20516373]
[1644244939925,121.2675,119.93,119.76,35.45516373]
[1644244940125,121.2675,119.93,119.76,43.05516373]
[1644244940324,121.2675,119.93,119.76,41.20516373]
[1644244940525,44.20681914,119.92,119.77,12.5197]
[1644244940824,44.20681914,119.92,119.78,2.03705264]
[1644244941223,43.70681914,119.92,119.78,2.03705264]
[1644244941523,12.5223,119.91,119.78,2.03705264]
[1644244941723,121.2675,119.93,119.78,12.39705264]
[1644244942124,121.2675,119.93,119.78,18.39705264]
[1644244942524,160.18768692,119.93,119.78,18.39705264]
[1644244942925,75.0771,119.93,119.78,30.91545264]
[1644244943126,22.6488,119.96,119.78,30.91545264]
[1644244943325,22.6488,119.96,119.79,54.791]
[1644244943527,22.6488,119.96,119.8,10.11]
[1644244943725,22.6488,119.96,119.8,16.36]
[1644244943925,38.98761493,119.95,119.81,19.60261985]
[1644244944123,38.98761493,119.95,119.83,12.5138]
[1644244944325,38.98761493,119.95,119.84,18.13959652]
[1644244944726,38.98761493,119.95,119.84,18.38959652]
[1644244946527,4.17,119.99,119.84,18.38959652]
[1644244946726,23.4827191,120.0,119.84,24.38959652]
[1644244947227,23.4827191,120.0,119.84,18.38959652]
[1644244947427,39.10039428,119.99,119.84,10.11]
[1644244947628,12.5148,119.98,119.84,10.11]
[1644244947828,27.39243852,119.98,119.84,10.11]
[1644244948226,27.39243852,119.98,119.84,10.36]
[1644244948526,35.97681225,119.97,119.84,10.11]
[1644244948730,12.5168,119.96,119.84,10.11]
[1644244949126,12.5168,119.96,119.8,16.6852]
[1644244949127,22.6688,119.96,119.8,16.6852]
[1644244949327,22.6688,119.96,119.8,18.5172]
[1644244949527,36.00735149,119.95,119.81,25.39710033]
[1644244949725,36.00735149,119.95,119.81,31.39710033]
[1644244949925,14.28,119.98,119.81,31.39710033]
[1644244949926,4.17,119.98,119.82,10.11]
[1644244950126,38.36035762,120.0,119.82,16.11]
[1644244950327,23.4827191,120.0,119.83,1.81225846]
[1644244950527,23.4827191,120.0,119.84,10.11]
[1644244950729,23.4827191,120.0,119.84,16.36]
[1644244950930,41.46522777,119.99,119.85,4.0473745]
[1644244951129,12.5148,119.98,119.84,10.36]
[1644244951434,14.66162857,119.98,119.84,10.36]
[1644244951628,12.5148,119.98,119.84,10.36]
[1644244952028,34.35509968,119.97,119.85,25.59850146]
[1644244952329,34.35509968,119.97,119.85,25.84850146]
[1644244952530,43.49109968,119.97,119.85,25.84850146]
[1644244952730,43.49109968,119.97,119.85,25.59850146]
[1644244953628,34.35509968,119.97,119.85,25.59850146]
[1644244953827,35.9952191,120.0,119.86,1.81225846]
[1644244953828,23.4827191,120.0,119.86,1.81225846]
[1644244954031,23.4827191,120.0,119.87,10.11]
[1644244954230,23.4827191,120.0,119.87,10.36]
[1644244954830,41.3485699,119.99,119.88,2.03371491]
[1644244955230,41.3485699,119.99,119.88,0.25]
[1644244955432,41.3485699,119.99,119.87,10.11]
[1644244955932,43.49539847,119.99,119.84,1.81225846]
[1644244956134,45.8468858,119.99,119.84,1.81225846]
[1644244956432,45.29902961,119.97,119.85,23.91376821]
[1644244956736,45.29902961,119.97,119.85,25.72602667]
[1644244957230,45.29902961,119.97,119.85,25.97602667]
[1644244957832,45.29902961,119.97,119.85,25.72602667]
[1644244958034,45.29902961,119.97,119.85,1.81225846]
[1644244958237,45.29902961,119.97,119.81,5.98025846]
[1644244958433,60.64251694,119.97,119.8,10.11]
[1644244958634,62.78934551,119.97,119.8,16.11]
[1644244958835,12.48525951,119.96,119.8,16.11]
[1644244959034,48.01436246,119.95,119.81,27.36752382]
[1644244959834,48.01436246,119.95,119.8,10.11]
[1644244960039,12.5209,119.92,119.77,10.11]
[1644244960236,23.5449,119.92,119.76,12.5219]
[1644244960940,39.80419732,119.91,119.77,33.40859277]
[1644244961137,62.50239732,119.91,119.78,12.5203]
[1644244961344,0.30329982,119.89,119.7,2.32871331]
[1644244961746,10.11,119.88,119.68,2.32871331]
[1644244961942,10.11,119.88,119.67,4.65663184]
[1644244961943,24.08782857,119.88,119.67,4.65663184]
[1644244962139,106.32075716,119.87,119.69,36.09015352]
[1644244962340,106.32075716,119.87,119.69,48.52886683]
[1644244962540,59.3048,119.87,119.71,4.07176285]
[1644244962739,59.3048,119.87,119.71,14.18176285]
[1644244962740,46.7785,119.87,119.71,14.18176285]
[1644244962940,22.698,119.87,119.71,36.30941488]
[1644244963141,2.35148733,119.91,119.71,44.50793399]
[1644244963342,2.35148733,119.92,119.73,63.1453]
[1644244963542,41.94591161,119.93,119.74,82.14387621]
[1644244963740,39.59442428,119.93,119.74,144.20476174]
[1644244963940,41.94591161,119.93,119.76,6.21834016]
[1644244964143,41.94591161,119.93,119.78,21.27966166]
[1644244964447,2.35148733,119.94,119.79,10.11]
[1644244964643,2.35148733,119.94,119.79,17.91760436]
[1644244964843,2.35148733,119.93,119.79,28.8759]
[1644244965045,35.70688733,119.96,119.79,28.8759]
[1644244965245,37.37748118,119.95,119.8,6.35255471]
[1644244965846,39.72896851,119.95,119.8,6.35255471]
[1644244966047,12.519,119.94,119.8,6.35255471]
[1644244966246,45.88484057,119.93,119.8,6.35255471]
[1644244966646,45.57873049,119.93,119.8,6.35255471]
[1644244967248,45.57873049,119.93,119.81,1.80760436]
[1644244967771,45.57873049,119.93,119.81,2.05760436]
[1644244967948,45.57873049,119.93,119.81,1.80760436]
[1644244968147,45.57873049,119.93,119.78,10.11]
[1644244968547,45.57873049,119.93,119.78,16.11]
[1644244968747,45.57873049,119.93,119.79,15.23431317]
[1644244968951,45.57873049,119.93,119.8,10.11]
[1644244969148,45.57873049,119.93,119.8,17.91760436]
[1644244969748,45.57873049,119.93,119.8,18.16760436]
[1644244969949,45.57873049,119.93,119.83,12.5157]
[1644244970350,45.57873049,119.93,119.83,22.6847]
[1644244970550,45.57873049,119.93,119.84,11.91760436]
[1644244970752,45.57873049,119.93,119.84,12.16760436]
[1644244970953,45.57873049,119.93,119.84,18.16760436]
[1644244971152,45.57873049,119.93,119.85,1.80760436]
[1644244971352,45.57873049,119.93,119.86,10.11]
[1644244971554,45.57873049,119.93,119.86,22.6211]
[1644244971755,45.57873049,119.93,119.86,22.8711]
[1644244972553,45.57873049,119.93,119.86,42.45570436]
[1644244973553,0.5229191,120.0,119.87,158.0]
[1644244973755,0.5229191,120.0,119.88,10.11]
[1644244973957,0.5229191,120.0,119.9,12.5033]
[1644244974153,0.5229191,120.0,119.91,10.11]
[1644244974354,0.5229191,120.0,119.91,10.36]
[1644244974756,0.5229191,120.0,119.91,12.16760436]
[1644244975154,0.5229191,120.0,119.92,12.5064]
[1644244975554,0.5229191,120.0,119.92,18.5064]
[1644244975957,0.5229191,120.0,119.88,34.7167]
[1644244976155,0.5229191,120.0,119.88,22.621]
[1644244976356,0.5229191,120.0,119.88,10.11]
[1644244976957,38.58282419,119.99,119.89,44.17795634]
[1644244977156,38.08282419,119.99,119.89,44.17795634]
[1644244977364,38.08282419,119.99,119.89,56.68735634]
[1644244977556,0.5229191,120.0,119.9,1.80760436]
[1644244977760,0.5229191,120.0,119.91,10.11]
[1644244978457,38.46827672,119.99,119.92,29.53299052]
[1644244978658,38.46827672,119.99,119.89,11.91760436]
[1644244978858,38.46827672,119.99,119.89,10.36]
[1644244979077,38.46827672,119.99,119.89,10.11]
[1644244979458,38.46827672,119.99,119.89,22.62]
[1644244979658,38.46827672,119.99,119.9,44.3751818]
[1644244979959,38.46827672,119.99,119.89,22.62]
[1644244980159,38.46827672,119.99,119.89,10.11]
[1644244980365,38.46827672,119.99,119.84,41.7064]
[1644244980366,40.61510529,119.99,119.84,10.11]
[1644244980959,40.61510529,119.99,119.85,39.20750165]
[1644244981160,40.61510529,119.99,119.84,10.11]
[1644244981363,63.05730529,119.99,119.79,6.1384]
[1644244981661,236.405093,119.99,119.81,10.11]
[1644244981861,223.19917672,119.99,119.82,6.13686]
[1644244982062,205.31000529,119.99,119.83,55.41565964]
[1644244982261,190.64697672,119.99,119.83,70.64997281]
[1644244982464,190.64697672,119.99,119.85,12.5142]
[1644244982662,192.79380529,119.99,119.85,40.91948722]
[1644244982861,192.79380529,119.99,119.82,6.13686]
[1644244983064,0.32371168,119.95,119.82,6.13686]
[1644244983262,10.458,119.95,119.78,23.1222]
[1644244983462,24.6718,119.97,119.79,10.11]
[1644244983762,35.3248358,119.96,119.8,41.21327642]
[1644244983964,12.52,119.95,119.8,41.21327642]
[1644244984164,40.192985,119.94,119.8,41.21327642]
[1644244984463,51.465985,119.94,119.8,41.21327642]
[1644244984662,40.192985,119.94,119.8,41.21327642]
[1644244985068,40.192985,119.94,119.8,53.73197642]
[1644244985265,40.192985,119.94,119.82,32.49767044]
[1644244985665,40.192985,119.94,119.81,10.11]
[1644244985865,42.33981357,119.94,119.79,10.11]
[1644244986065,52.44981357,119.94,119.75,10.11]
[1644244986265,52.44981357,119.94,119.74,22.7649]
[1644244986565,62.824385,119.94,119.76,12.5231]
[1644244986765,99.533785,119.94,119.77,54.0004063]
[1644244987165,99.533785,119.94,119.77,54.2504063]
[1644244987366,99.533785,119.94,119.77,60.2504063]
[1644244987569,0.30674715,119.93,119.76,4.171]
[1644244987872,45.97433474,119.93,119.76,10.31093]
[1644244988068,2.14682857,119.92,119.76,10.31093]
[1644244988367,39.34975902,119.93,119.76,6.13993]
[1644244988566,46.14773339,119.92,119.78,12.5213]
[1644244988769,46.14773339,119.92,119.79,35.23372998]
[1644244989667,46.14773339,119.92,119.79,35.48372998]
[1644244989868,46.14773339,119.92,119.79,58.11342998]
[1644244990071,46.8194,119.94,119.79,58.11342998]
[1644244990292,2.35148733,119.98,119.8,1.80828298]
[1644244990475,104.0216,119.99,119.8,14.65087388]
[1644244990673,104.0216,119.99,119.81,10.11]
[1644244990870,104.0216,119.99,119.81,20.58987388]
[1644244991075,43.56670048,119.98,119.82,38.47721688]
[1644244991277,0.5229191,120.0,119.83,22.6259]
[1644244991473,0.5229191,120.0,119.83,24.43418298]
[1644244991679,0.5229191,120.0,119.83,30.68418298]
[1644244991878,0.5229191,120.0,119.84,1.80828298]
[1644244992076,0.5229191,120.0,119.85,10.11]
[1644244992279,34.3426189,119.99,119.88,38.47721688]
[1644244992476,34.3426189,119.99,119.88,10.11]
[1644244992681,2.14682857,119.98,119.82,4.168]
[1644244992879,0.31887892,119.96,119.82,4.168]
[1644244993077,10.11,119.95,119.82,4.168]
[1644244993278,16.42682857,119.95,119.82,4.168]
[1644244993479,39.29257338,119.94,119.83,42.3244639]
[1644244994379,41.43940195,119.94,119.82,4.168]
[1644244994777,10.11,119.93,119.82,4.168]
[1644244995178,0.30535713,119.95,119.94,122.61805591]
[1644244995382,57.66457307,119.95,119.86,45.97242614]
[1644244995578,45.5353,119.94,119.86,45.97242614]
[1644244995778,38.76087022,119.93,119.77,10.11]
[1644244995977,45.5353,119.94,119.77,10.36]
[1644244996183,45.5353,119.94,119.77,24.69630458]
[1644244996583,24.454,119.96,119.77,24.69630458]
[1644244996782,24.454,119.96,119.78,4.171]
[1644244997079,39.06762473,119.95,119.78,69.0178144]
[1644244997279,39.06762473,119.95,119.84,47.24413868]
[1644244997680,0.5229191,120.0,119.85,10.11]
[1644244998301,2.14682857,119.99,119.85,10.11]
[1644244998501,2.14682857,119.99,119.85,10.36]
[1644244998702,43.42987463,119.98,119.86,48.11166274]
[1644244999703,45.5767032,119.98,119.86,48.11166274]
[1644245000103,0.5229191,120.0,119.86,48.11166274]
[1644245000305,0.5229191,120.0,119.86,58.22166274]
[1644245000607,0.5229191,120.0,119.86,72.79796732]
[1644245000804,0.5229191,120.0,119.86,78.79796732]
[1644245001005,41.27872948,120.0,119.86,78.79796732]
[1644245001207,41.27872948,120.0,119.88,42.18322123]
[1644245001406,41.27872948,120.0,119.87,10.11]